bitfinex/quotes_ETHUSD_20220118
["timestamp","ask_amount","ask_price","bid_price","bid_amount"]
[1642469323707,0.83152259,3237.0,3236.6,0.30909478]
[1642469323906,0.83152259,3237.0,3236.6,0.00909478]
[1642469324107,0.83152259,3237.0,3236.7,0.00852635]
[1642469324309,0.83152259,3237.0,3236.4,0.01023162]
[1642469326416,1.2242,3237.2,3236.4,0.01023162]
[1642469328064,0.9331,3237.2,3236.4,0.01023162]
[1642469328262,0.9331,3237.2,3236.5,0.1235]
[1642469328764,0.9331,3237.2,3236.6,0.00909478]
[1642469328963,0.9331,3237.2,3236.7,0.1235]
[1642469329363,0.9331,3237.2,3236.8,0.00795793]
[1642469330063,0.9331,3237.2,3236.4,0.01023162]
[1642469330264,0.9331,3237.2,3236.5,0.1235]
[1642469330667,0.9331,3237.2,3236.6,0.00909478]
[1642469330866,0.9331,3237.2,3236.7,0.1235]
[1642469331312,0.9331,3237.2,3236.8,0.00795793]
[1642469333216,0.6424,3237.2,3236.8,0.00795793]
[1642469334418,0.64694167,3237.2,3236.8,0.00795793]
[1642469335267,0.64694167,3237.2,3236.6,0.00909478]
[1642469337376,0.04544,3237.1,3236.6,0.00909478]
[1642469337574,0.447,3237.0,3236.6,0.00909478]
[1642469337778,1.42896248,3236.8,3236.3,0.01080005]
[1642469337974,0.04544,3236.7,3236.3,0.01080005]
[1642469338174,1.18140248,3236.8,3236.3,0.01080005]
[1642469339016,2.76716475,3236.8,3236.7,1.35581952]
[1642469339316,2.76716475,3236.8,3236.7,1.36434587]
[1642469339614,2.76716475,3236.8,3236.0,0.3]
[1642469339816,3.89376475,3236.8,3235.7,1.54807496]
[1642469340015,3.89376475,3236.8,3236.1,0.00341054]
[1642469340219,1.35633116,3236.2,3236.1,0.00341054]
[1642469340419,1.1266,3236.8,3236.1,0.00341054]
[1642469340821,3.50713648,3236.8,3236.1,0.00341054]
[1642469341021,3.50713648,3236.8,3235.9,0.00454739]
[1642469341720,3.50713648,3236.8,3235.8,0.00511581]
[1642469341721,2.71387138,3236.8,3235.8,0.00511581]
[1642469341920,7.2134,3236.7,3235.8,0.00511581]
[1642469342560,1.40798252,3235.9,3235.8,0.00511581]
[1642469343360,1.10798252,3235.9,3235.8,0.00511581]
[1642469344361,1.10798252,3235.9,3235.7,0.00568424]
[1642469344562,1.1125301,3235.9,3235.7,0.30568424]
[1642469344966,1.1125301,3235.9,3235.8,0.00511581]
[1642469345165,1.1125301,3235.9,3235.8,0.30511581]
[1642469345367,1.1125301,3235.9,3235.7,0.00568424]
[1642469345566,1.1125301,3235.9,3235.8,0.00511581]
[1642469345767,1.1125301,3235.9,3235.7,0.00568424]
[1642469346410,0.00454758,3235.9,3235.7,0.00568424]
[1642469347914,1.11308707,3235.9,3235.7,0.00568424]
[1642469348512,1.96049408,3236.6,3235.7,0.00568424]
[1642469349314,0.3732227,3236.6,3235.7,0.00568424]
[1642469349515,0.00454758,3235.9,3235.7,0.00568424]
[1642469350366,1.25210952,3235.8,3235.7,0.00568424]
[1642469351567,1.69910952,3235.8,3235.6,5.92e-05]
[1642469351968,1.69910952,3235.8,3235.2,0.1236]
[1642469352366,1.69910952,3235.8,3235.3,0.00227369]
[1642469352766,2.40630952,3235.8,3235.3,0.00227369]
[1642469353467,4.786846,3235.8,3235.3,0.00227369]
[1642469353712,4.488546,3235.8,3235.3,0.00227369]
[1642469353914,7.7089,3235.7,3235.3,0.00227369]
[1642469354112,0.447,3235.6,3235.3,0.00227369]
[1642469357761,1.5997,3235.6,3235.3,0.00227369]
[1642469358361,4.98023648,3235.6,3235.3,0.00227369]
[1642469358564,4.4736,3235.5,3234.1,2.40226501]
[1642469358863,0.1529,3235.4,3234.2,0.00625266]
[1642469359062,0.1236,3235.3,3234.2,0.00625266]
[1642469359262,0.447,3235.2,3234.2,0.00625266]
[1642469359466,0.1236,3235.1,3234.2,0.00625266]
[1642469359865,1.36786744,3234.4,3234.2,0.00625266]
[1642469360067,10.49442051,3235.1,3234.2,0.00625266]
[1642469360266,8.3046984,3235.1,3234.2,0.00625266]
[1642469360867,8.3046984,3235.1,3234.3,0.89966993]
[1642469360868,3.31998802,3235.0,3234.3,0.89966993]
[1642469361110,3.31998802,3235.0,3234.3,1.49966993]
[1642469361314,3.31998802,3235.0,3234.4,0.00511581]
[1642469362118,1.15069851,3234.6,3234.4,0.00511581]
[1642469362716,1.15069851,3234.6,3234.5,0.89966993]
[1642469363115,1.15069851,3234.6,3234.5,1.20421732]
[1642469363817,2.88265864,3234.6,3234.5,1.20421732]
[1642469364017,2.58395864,3234.6,3234.5,1.20421732]
[1642469364418,0.85199851,3234.6,3234.5,1.21281497]
[1642469364622,0.85199851,3234.6,3234.5,0.91281497]
[1642469364881,2.6,3234.5,3233.9,0.1236]
[1642469365074,1.5706,3234.4,3233.9,0.1236]
[1642469365272,1.5706,3234.4,3234.0,0.00284212]
[1642469366479,0.5706,3234.4,3234.0,0.00284212]
[1642469366878,0.447,3234.4,3234.0,0.00284212]
[1642469368081,1.58802789,3234.2,3234.0,0.00284212]
[1642469368281,0.447,3234.1,3234.0,0.00284212]
[1642469368480,0.447,3234.1,3233.9,0.00341054]
[1642469368711,0.447,3234.1,3233.5,0.12928423]
[1642469369111,0.1475,3234.1,3233.5,0.07928423]
[1642469369312,1.73552789,3234.1,3233.5,0.12928423]
[1642469371218,1.73552789,3234.1,3233.5,1.12928423]
[1642469371417,1.58802789,3234.1,3233.5,1.12928423]
[1642469371620,1.58802789,3234.1,3233.6,0.00511581]
[1642469372369,0.00892905,3234.2,3233.5,0.12928423]
[1642469372565,0.00892905,3234.2,3233.5,0.07928423]
[1642469374167,0.94892905,3234.3,3233.5,2.89409329]
[1642469374470,0.94892905,3234.3,3233.8,0.01241846]
[1642469374670,0.94892905,3234.3,3234.0,0.3]
[1642469374870,0.94892905,3234.3,3234.1,0.1236]
[1642469375073,0.94892905,3234.3,3234.1,0.12587369]
[1642469375273,0.94892905,3234.3,3234.2,0.00170527]
[1642469376919,0.94892905,3234.3,3233.9,0.00341054]
[1642469379327,0.64982905,3234.3,3233.9,0.00341054]
[1642469379527,0.64982905,3234.3,3234.1,0.00653694]
[1642469379967,0.64982905,3234.3,3234.2,0.00170527]
[1642469384519,0.34982905,3234.3,3234.2,0.00170527]
[1642469384720,0.34982905,3234.3,3234.2,0.72254145]
[1642469384923,1.91496703,3234.3,3234.2,0.72083618]
[1642469385123,1.91496703,3234.3,3234.2,1.02254145]
[1642469385323,3.62659492,3234.7,3234.2,0.30170527]
[1642469385528,3.62659492,3234.7,3234.2,0.00170527]
[1642469385723,3.62659492,3234.7,3234.3,0.00113685]
[1642469385922,3.50299492,3234.7,3234.2,0.00170527]
[1642469386327,3.50299492,3234.6,3234.3,0.72083618]
[1642469386527,3.50299492,3234.6,3234.3,1.32083618]
[1642469387126,3.50299492,3234.6,3234.3,1.02083618]
[1642469387764,1.91610388,3234.7,3234.4,0.72083618]
[1642469387964,2.03970388,3234.7,3234.4,0.72083618]
[1642469388166,2.03970388,3234.7,3234.4,1.02083618]
[1642469388566,3.62773177,3234.7,3234.5,0.72083618]
[1642469389566,0.1236,3234.7,3234.6,0.72083618]
[1642469389768,9.08042789,3234.8,3234.6,0.72083618]
[1642469390368,1.58802789,3234.7,3234.6,0.72083618]
[1642469391418,9.08042789,3234.8,3234.6,0.72083618]
[1642469391619,8.95682789,3234.8,3234.6,0.72083618]
[1642469392620,7.3688,3234.8,3234.2,0.00170527]
[1642469393022,18.12,3234.7,3233.8,0.00511581]
[1642469393220,18.2436,3234.7,3233.8,0.00511581]
[1642469394023,1.56031968,3234.3,3233.8,0.00511581]
[1642469394622,1.26771968,3234.3,3233.8,0.00511581]
[1642469395572,1.2185,3234.4,3233.8,0.00511581]
[1642469396273,1.2185,3234.4,3233.7,0.12928424]
[1642469396472,1.2185,3234.4,3233.8,0.00511581]
[1642469396773,1.2185,3234.4,3233.5,0.13042108]
[1642469398719,1.2185,3234.4,3233.5,1.92613145]
[1642469398915,1.2185,3234.4,3233.6,1.19481076]
[1642469399119,1.2185,3234.4,3233.6,1.80106342]
[1642469399318,1.2185,3234.4,3233.7,0.00568424]
[1642469399522,1.22204897,3234.4,3233.7,0.00568424]
[1642469399719,0.92824897,3234.4,3233.7,0.00568424]
[1642469402368,0.92824897,3234.4,3233.7,1.80314494]
[1642469402562,0.92824897,3234.4,3233.7,2.10314494]
[1642469402762,0.92824897,3234.4,3233.7,0.30568424]
[1642469402963,0.92824897,3234.4,3233.7,0.00568424]
[1642469403772,1.49062207,3234.1,3233.7,0.00568424]
[1642469404769,1.19662207,3234.1,3233.7,0.00568424]
[1642469405774,5.52496326,3234.4,3233.7,0.00568424]
[1642469405975,5.40136326,3234.4,3233.7,0.00568424]
[1642469407119,1.38412138,3234.4,3233.7,0.00568424]
[1642469407518,1.38412138,3234.4,3233.6,1.86184336]
[1642469407919,1.38412138,3234.4,3233.6,0.3]
[1642469408119,1.38412138,3234.4,3233.5,3.7796493]
[1642469408519,1.38412138,3234.4,3233.6,0.00625266]
[1642469408820,1.38412138,3234.4,3233.6,1.56809602]
[1642469409124,1.38412138,3234.4,3233.7,0.00568424]
[1642469409520,0.17416219,3234.0,3233.7,0.00568424]
[1642469409719,0.34832438,3234.0,3233.8,0.39086678]
[1642469409967,0.05072438,3234.0,3233.8,0.39086678]
[1642469410167,0.05072438,3234.0,3233.9,0.00454739]
[1642469410974,0.05072438,3234.0,3233.9,0.39541417]
[1642469411172,0.05072438,3234.0,3233.9,1.03740725]
[1642469414612,0.00431701,3234.0,3233.9,1.03740725]
[1642469415016,0.0264,3234.2,3233.9,1.03740725]
[1642469415414,0.02639,3234.3,3234.0,0.00397897]
[1642469416014,3.05155556,3234.3,3234.0,0.00397897]
[1642469416620,2.0398945,3234.3,3234.0,0.00397897]
[1642469416820,2.0398945,3234.3,3234.1,0.64199308]
[1642469417023,3.0398945,3234.3,3234.1,0.64199308]
[1642469417219,3.01178909,3234.3,3234.1,0.64199308]
[1642469417468,1.99421104,3234.2,3234.1,0.64199308]
[1642469417670,3.11781104,3234.2,3234.1,0.64199308]
[1642469417869,3.11781104,3234.2,3234.1,0.64540362]
[1642469418270,1.1236,3234.2,3234.1,0.64540362]
[1642469418470,4.72898004,3234.2,3234.1,0.64540362]
[1642469419675,2.71185446,3234.2,3234.1,0.65187143]
[1642469420071,2.41915446,3234.2,3234.1,0.65187143]
[1642469420274,0.8309,3234.2,3234.1,0.65187143]
[1642469420472,3.0900249,3234.3,3234.1,0.65187143]
[1642469420874,3.0900249,3234.3,3234.2,0.00284212]
[1642469421119,5.1422945,3234.3,3234.2,0.00284212]
[1642469421320,6.1422945,3234.3,3234.2,0.00284212]
[1642469421720,6.1422945,3234.3,3234.2,0.6448352]
[1642469421921,4.0900249,3234.3,3234.2,0.6448352]
[1642469422624,2.58825446,3234.3,3234.2,0.6448352]
[1642469423222,2.61465446,3234.3,3234.2,0.6448352]
[1642469423424,1.61465446,3234.3,3234.2,0.6448352]
[1642469423622,2.61465446,3234.3,3234.2,0.6448352]
[1642469423822,1.61465446,3234.3,3234.2,0.6448352]
[1642469424041,2.61465446,3234.3,3234.2,0.6448352]
[1642469424222,1.58825446,3234.3,3234.2,0.6448352]
[1642469424425,2.58825446,3234.3,3234.2,0.6448352]
[1642469424625,1.58825446,3234.3,3234.2,0.6448352]
[1642469424886,4.60135049,3234.3,3234.2,0.6448352]
[1642469425075,2.58825446,3234.3,3234.2,0.6448352]
[1642469425275,0.6985,3234.3,3234.2,0.00284212]
[1642469425576,1.2124,3234.3,3233.4,0.00738951]
[1642469425775,1.2124,3234.3,3233.5,0.1236]
[1642469426281,1.2124,3234.3,3233.4,0.1236]
[1642469426480,3.6909567,3234.2,3233.5,0.53652268]
[1642469426681,3.6909567,3234.2,3233.6,0.1236]
[1642469427081,2.01306095,3234.1,3233.7,0.00568424]
[1642469427282,0.447,3234.0,3233.7,0.00568424]
[1642469427486,0.447,3234.0,3233.7,0.54220692]
[1642469427487,2.10644704,3233.9,3233.7,0.54220692]
[1642469427683,2.55344704,3233.9,3233.7,0.54220692]
[1642469427880,2.55344704,3233.9,3233.7,0.53652268]
[1642469427881,2.09193776,3233.8,3233.7,0.53652268]
[1642469428281,3.55898885,3233.8,3233.7,0.00568424]
[1642469428482,5.66206515,3233.8,3233.7,0.00568424]
[1642469429120,5.66206515,3233.8,3233.1,0.1236]
[1642469429320,5.66206515,3233.8,3232.9,0.1237]
[1642469429527,5.66206515,3233.8,3233.2,0.00284211]
[1642469429729,5.61206515,3233.8,3233.3,0.1237]
[1642469430131,5.61206515,3233.8,3233.4,0.00170527]
[1642469430327,5.29805528,3233.8,3233.4,0.00170527]
[1642469430527,5.29805528,3233.8,3233.4,0.52694734]
[1642469430528,1.5881329,3233.6,3233.4,0.52694734]
[1642469430726,1.5881329,3233.6,3233.4,0.52524207]
[1642469430928,1.5881329,3233.6,3233.5,0.00113684]
[1642469431527,3.6912092,3233.7,3233.5,0.00113684]
[1642469431827,3.6912092,3233.7,3233.1,0.12711054]
[1642469432468,3.6912092,3233.8,3233.1,0.12711054]
[1642469433274,2.1030763,3233.6,3233.2,0.52524207]
[1642469433569,2.1030763,3233.6,3233.3,0.00227369]
[1642469433972,3.6912092,3233.8,3233.3,0.00227369]
[1642469434172,0.34496963,3233.6,3233.3,0.00227369]
[1642469434572,2.1030763,3233.5,3233.3,0.00227369]
[1642469435373,1.8107763,3233.5,3233.3,0.00227369]
[1642469435976,1.8107763,3233.5,3233.1,0.12711054]
[1642469436224,1.8107763,3233.5,3233.1,0.00341054]
[1642469437025,1.8107763,3233.5,3233.0,0.00397896]
[1642469437626,2.8125329,3233.9,3233.0,0.00397896]
[1642469438226,1.2244,3233.9,3233.0,0.00397896]
[1642469439025,1.198,3233.9,3233.1,0.1237]
[1642469440373,1.198,3233.9,3233.1,0.4237]
[1642469440568,0.9035,3233.9,3233.1,0.4237]
[1642469440969,9.2278329,3234.0,3233.1,0.4237]
[1642469441375,0.00113685,3233.9,3233.1,0.4237]
[1642469443821,0.00113685,3233.9,3233.1,0.3]
[1642469444021,0.00113685,3233.9,3233.0,0.12767896]
[1642469444222,0.00113685,3233.9,3233.0,0.00397896]
[1642469444422,0.00113685,3233.9,3232.8,0.1237]
[1642469444423,0.00113685,3233.9,3233.1,0.00341054]
[1642469444621,0.00113685,3233.9,3232.9,0.00454738]
[1642469444822,0.00113685,3233.9,3233.0,0.1237]
[1642469445223,0.00113685,3233.9,3233.1,0.00341054]
[1642469445425,0.0264,3233.8,3233.1,0.00341054]
[1642469445629,7.37413685,3234.0,3233.1,0.00341054]
[1642469445825,7.37413685,3234.0,3232.9,0.00568423]
[1642469446228,7.37413685,3234.0,3232.8,0.00625266]
[1642469446431,7.37413685,3234.0,3232.9,0.1237]
[1642469446629,1.1265,3233.9,3232.9,0.1237]
[1642469446830,1.1265,3233.9,3233.0,0.00511581]
[1642469447473,1.1265,3233.9,3232.8,0.00625266]
[1642469447672,1.1265,3233.9,3232.7,1.00682108]
[1642469447873,1.1265,3233.9,3232.7,1.30682108]
[1642469448070,1.1265,3233.9,3232.8,0.00625266]
[1642469449574,3.17927777,3233.9,3232.8,0.00625266]
[1642469449773,0.3685229,3233.6,3232.8,0.00625266]
[1642469450574,0.0766229,3233.6,3232.8,0.00625266]
[1642469450778,0.0766229,3233.6,3232.7,0.00682108]
[1642469451118,0.0766229,3233.6,3232.8,0.1237]
[1642469451523,0.0766229,3233.6,3232.9,0.00568423]
[1642469452225,0.0766229,3233.6,3232.7,0.00682108]
[1642469452924,1.47672633,3233.6,3232.7,0.00682108]
[1642469455575,1.18542633,3233.6,3232.7,0.00682108]
[1642469455978,1.18542633,3233.6,3232.7,0.30682108]
[1642469456176,2.11744037,3233.5,3232.8,0.51004651]
[1642469456378,2.11744037,3233.5,3232.8,0.51629917]
[1642469456577,2.11744037,3233.5,3232.9,0.00568423]
[1642469457179,2.11744037,3233.8,3232.9,1.56752759]
[1642469457379,1.23360941,3233.7,3232.9,1.56752759]
[1642469457578,1.23360941,3233.7,3233.0,0.00511581]
[1642469458180,1.23360941,3233.7,3233.0,0.51516232]
[1642469458379,0.32274565,3233.5,3233.0,0.51516232]
[1642469458631,0.32274565,3233.5,3233.1,0.00454739]
[1642469459130,0.32274565,3233.5,3233.0,0.51004651]
[1642469459131,0.32274565,3233.5,3233.0,0.4645939]
[1642469459330,0.00170527,3233.4,3233.0,0.4645939]
[1642469459732,0.00113685,3233.3,3233.0,0.4645939]
[1642469460734,0.0273825,3233.5,3233.0,0.4645939]
[1642469460935,0.0273825,3233.5,3233.1,0.00113685]
[1642469464479,0.03618214,3233.5,3233.0,0.00170527]
[1642469465779,1.22883248,3233.8,3233.0,0.00170527]
[1642469466229,1.2316746,3233.8,3233.0,0.00170527]
[1642469469636,1.2316746,3233.8,3233.2,0.00649006]
[1642469470879,0.9346746,3233.8,3233.2,0.00649006]
[1642469471686,0.00284212,3233.8,3233.2,0.00649006]
[1642469473621,0.38537539,3233.7,3233.2,0.00649006]
[1642469474026,0.00170527,3233.6,3233.2,0.00649006]
[1642469474428,0.00113685,3233.5,3233.0,0.00170527]
[1642469474726,0.00170527,3233.6,3233.0,0.00170527]
[1642469475127,0.00113685,3233.5,3233.0,0.00170527]
[1642469475629,0.00170527,3233.6,3233.0,0.00170527]
[1642469476030,0.09161224,3233.7,3233.0,0.00170527]
[1642469476228,0.09161224,3233.7,3233.0,0.00284212]
[1642469477879,1.31806755,3233.1,3233.0,0.00284212]
[1642469479079,5.64524514,3233.7,3233.0,0.00284212]
[1642469480286,2.21266055,3233.6,3233.0,0.00284212]
[1642469480484,0.447,3233.5,3233.0,0.00284212]
[1642469480684,1.46076254,3233.1,3233.0,0.00284212]
[1642469480888,1.90776254,3233.1,3232.4,0.47019196]
[1642469481332,3.90776254,3233.1,3232.5,0.00284212]
[1642469481532,2.90776254,3233.1,3232.5,0.00284212]
[1642469482935,4.90776254,3233.1,3232.3,0.30397896]
[1642469483137,0.78544966,3232.9,3232.3,0.30397896]
[1642469483336,0.447,3232.8,3232.4,0.00341054]
[1642469483537,2.09937995,3232.7,3232.4,0.00341054]
[1642469483737,2.54637995,3232.7,3232.4,0.00341054]
[1642469483936,2.54637995,3232.7,3232.1,0.00511581]
[1642469484137,1.21187429,3232.2,3232.1,0.00511581]
[1642469485001,1.21187429,3232.2,3231.5,0.00852635]
[1642469485186,1.21187429,3232.2,3231.5,0.30852635]
[1642469485387,0.35490596,3231.8,3231.5,0.30852635]
[1642469485588,0.35490596,3231.8,3231.6,0.00795793]
[1642469486196,0.66135588,3231.7,3231.6,0.00795793]
[1642469486697,0.66135588,3231.7,3231.5,0.00852635]
[1642469486698,4.76135588,3231.7,3231.5,0.00852635]
[1642469487096,0.447,3231.6,3231.4,0.00909478]
[1642469487498,0.447,3231.6,3231.2,0.01023162]
[1642469487898,1.447,3231.6,3231.2,0.01023162]
[1642469488624,2.16988916,3231.5,3231.2,0.01023162]
[1642469488824,0.447,3231.4,3231.2,0.01023162]
[1642469489024,1.21187429,3231.2,3230.9,0.01193689]
[1642469489224,1.65887429,3231.2,3230.9,0.01193689]
[1642469489835,2.16988916,3231.1,3230.9,0.01193689]
[1642469490133,0.1237,3230.8,3230.4,0.1238]
[1642469490535,0.1237,3230.8,3230.5,1.57527447]
[1642469490834,0.1237,3230.8,3230.6,0.00170527]
[1642469491037,2.16988916,3230.7,3230.6,0.00170527]
[1642469491236,1.87738916,3230.7,3230.6,0.00170527]
[1642469491636,1.87738916,3230.7,3230.3,0.00341054]
[1642469492376,2.53874504,3230.7,3230.3,0.00341054]
[1642469492778,0.66135588,3230.7,3230.3,0.00341054]
[1642469493377,0.27315655,3230.6,3230.3,0.00341054]
[1642469494578,0.29177523,3230.6,3230.3,0.00341054]
[1642469496532,0.11507523,3230.8,3230.4,0.03582686]
[1642469497631,0.11507523,3230.8,3230.3,0.12711054]
[1642469498030,0.11507523,3230.8,3230.4,0.00284212]
[1642469499633,0.11507523,3230.8,3230.5,0.00892222]
[1642469500089,0.11507523,3230.8,3230.6,0.00170527]
[1642469500293,0.1237,3230.7,3230.6,0.00170527]
[1642469500590,0.38878115,3230.7,3230.6,0.00170527]
[1642469500794,2.83578115,3230.7,3230.6,0.00170527]
[1642469500990,0.83578115,3230.7,3230.6,0.00170527]
[1642469501189,1.83578115,3230.7,3230.6,0.00170527]
[1642469501391,4.58578115,3230.7,3230.6,0.00170527]
[1642469501589,5.28718115,3230.7,3230.6,0.00170527]
[1642469502893,7.71654715,3230.7,3230.6,0.00170527]
[1642469504127,10.14553457,3230.7,3230.6,0.00170527]
[1642469504326,12.52995014,3230.7,3230.6,0.00170527]
[1642469505326,10.14553457,3230.7,3230.6,0.00170527]
[1642469506332,7.98541172,3230.7,3230.6,0.00170527]
[1642469506734,7.68641172,3230.7,3230.6,0.00170527]
[1642469506931,4.25704572,3230.7,3230.6,0.00170527]
[1642469507371,2.66716857,3230.7,3230.6,0.00170527]
[1642469508773,0.23818115,3230.7,3230.6,0.00170527]
[1642469510474,7.15577523,3230.8,3230.6,0.00170527]
[1642469511732,7.15577523,3230.8,3230.3,0.0820956]
[1642469511932,6.85647523,3230.8,3230.1,1.4237]
[1642469512230,2.64945111,3230.7,3230.4,0.00113685]
[1642469512432,2.64945111,3230.7,3230.5,0.1237]
[1642469512829,2.64945111,3230.7,3230.3,0.00170527]
[1642469512830,2.64945111,3230.7,3230.4,0.1237]
[1642469514235,2.64945111,3230.7,3230.3,0.00170527]
[1642469514433,0.0034875,3230.6,3230.3,0.00170527]
[1642469516280,0.0034875,3230.6,3230.1,0.00284212]
[1642469517084,2.35473861,3230.7,3230.1,0.00284212]
[1642469517385,2.35473861,3230.6,3230.1,1.19785992]
[1642469517783,2.35473861,3230.6,3230.2,0.0022737]
[1642469518283,6.98017523,3230.8,3230.2,0.0022737]
[1642469518487,6.98017523,3230.8,3230.1,0.00284212]
[1642469518726,0.1237,3230.7,3230.1,0.00284212]
[1642469520427,0.1237,3230.7,3230.1,1.0]
[1642469520627,0.00284212,3230.6,3230.2,2.1237]
[1642469520832,0.00284212,3230.6,3230.3,0.06000949]
[1642469521037,0.00227369,3230.5,3230.4,0.1237]
[1642469521235,0.00227369,3230.5,3230.4,5.32520413]
[1642469521432,0.00227369,3230.5,3230.4,0.4237]
[1642469521932,0.00227369,3230.5,3230.4,0.3]
[1642469522133,1.30005084,3231.0,3230.2,0.1237]
[1642469522377,1.30005084,3231.0,3230.2,0.4237]
[1642469522579,0.0022737,3230.9,3230.3,0.00113684]
[1642469522979,0.00170527,3230.8,3230.3,0.30113684]
[1642469523180,0.00170527,3230.8,3230.3,0.00113684]
[1642469523379,0.00113685,3230.7,3230.3,0.00113684]
[1642469523780,0.00341054,3231.1,3230.3,0.00113684]
[1642469524183,2.38441557,3231.2,3230.3,0.00113684]
[1642469524184,0.00284212,3231.0,3230.3,0.00113684]
[1642469524384,0.00284212,3231.0,3230.3,0.30113684]
[1642469524584,0.00341054,3231.1,3230.3,0.30113684]
[1642469524785,0.00341054,3231.1,3230.3,0.00113684]
[1642469524985,0.00284212,3231.0,3230.3,0.00113684]
[1642469525385,0.00341054,3231.1,3230.3,0.00113684]
[1642469525585,0.00341054,3231.1,3230.3,0.30113684]
[1642469525785,0.00284212,3231.0,3230.3,0.30113684]
[1642469525989,0.00284212,3231.0,3230.3,0.00113684]
[1642469526235,0.00341054,3231.1,3230.3,0.00113684]
[1642469526630,0.00284212,3231.0,3230.3,0.00113684]
[1642469526829,0.1237,3230.9,3230.3,0.00113684]
[1642469527244,0.45017756,3231.0,3230.2,0.00170527]
[1642469527436,0.1237,3230.8,3230.2,0.00170527]
[1642469527731,18.567,3230.7,3230.0,0.00454738]
[1642469527930,0.1237,3230.6,3230.0,0.00454738]
[1642469528129,0.447,3230.5,3230.0,0.00454738]
[1642469528332,1.12645788,3230.1,3230.0,0.00454738]
[1642469528533,2.68215788,3230.1,3230.0,0.00454738]
[1642469528934,3.04306485,3230.1,3230.0,0.00454738]
[1642469530176,5.14244265,3230.1,3230.0,0.00454738]
[1642469530375,5.14529792,3230.1,3230.0,0.00454738]
[1642469531586,3.25,3230.0,3228.6,1.51786981]
[1642469531783,21.00623541,3229.9,3228.6,1.51786981]
[1642469531982,0.1237,3229.8,3229.6,0.0022737]
[1642469532183,0.447,3229.7,3229.6,0.0022737]
[1642469532481,20.75611111,3229.7,3229.6,0.0022737]
[1642469533484,20.63241111,3229.7,3229.6,0.0022737]
[1642469534135,23.06139853,3229.7,3228.6,0.1237]
[1642469534332,1.50559463,3229.4,3228.6,0.1237]
[1642469534531,1.50559463,3229.4,3228.7,0.00511581]
[1642469534532,3.12866089,3229.3,3228.7,0.00511581]
[1642469534730,10.70296089,3229.3,3228.7,0.00511581]
[1642469534931,10.70296089,3229.3,3228.5,7.42]
[1642469535129,10.70296089,3229.3,3228.5,7.39881581]
[1642469535331,0.45017756,3228.7,3228.3,7.42]
[1642469535531,1.55627756,3228.7,3228.3,7.42]
[1642469535731,1.55627756,3228.7,3228.4,0.00170527]
[1642469537575,1.25867756,3228.7,3228.4,0.00170527]
[1642469537776,1.25867756,3228.7,3228.3,7.37170527]
[1642469537977,1.25867756,3228.7,3228.0,1.57030046]
[1642469538175,0.00113685,3228.6,3228.0,1.57030046]
[1642469538380,0.44813685,3228.6,3228.1,0.00170527]
[1642469538578,0.1239,3228.5,3228.1,0.00170527]
[1642469538776,0.447,3228.4,3228.1,0.00170527]
[1642469538976,0.447,3228.4,3227.9,0.00284212]
[1642469539577,0.447,3228.4,3227.9,0.12674212]
[1642469539978,0.447,3228.4,3228.0,1.12592315]
[1642469540177,0.447,3228.4,3228.0,1.42592315]
[1642469540380,4.23392785,3228.3,3228.0,1.42592315]
[1642469540578,0.447,3228.2,3228.0,1.42592315]
[1642469541438,4.23392785,3228.3,3228.0,1.42592315]
[1642469541635,4.23392785,3228.3,3228.1,0.1239]
[1642469541834,4.23392785,3228.3,3228.0,1.42592315]
[1642469541835,4.23392785,3228.3,3228.0,1.54982315]
[1642469542038,4.23392785,3228.3,3228.2,0.00113685]
[1642469542241,1.58251831,3228.5,3228.2,0.00113685]
[1642469542736,1.28551831,3228.5,3228.2,0.00113685]
[1642469542936,1.28551831,3228.5,3228.3,0.1239]
[1642469543538,0.00113685,3228.6,3228.3,0.1239]
[1642469545781,0.00113685,3228.6,3228.5,1.53584596]
[1642469546385,0.00113685,3228.6,3228.5,1.83584596]
[1642469547785,0.1238,3228.7,3228.5,1.83584596]
[1642469549025,2.58020316,3228.8,3228.5,1.83584596]
[1642469551331,0.36835074,3228.8,3228.5,1.83584596]
[1642469551931,0.36835074,3228.8,3228.5,0.3]
[1642469552133,1.59091226,3228.6,3228.2,0.00113685]
[1642469552576,1.59091226,3228.6,3228.1,0.00284212]
[1642469552978,1.29151226,3228.6,3228.1,0.00284212]
[1642469553180,1.29151226,3228.5,3228.2,1.44400976]
[1642469553379,1.29151226,3228.5,3228.3,0.3]
[1642469553583,1.29151226,3228.5,3228.3,0.30170527]
[1642469553779,1.29151226,3228.5,3228.4,0.00113685]
[1642469554181,0.49205074,3228.8,3228.4,0.00113685]
[1642469555581,0.36835074,3228.8,3228.4,0.00113685]
[1642469555783,0.36835074,3228.8,3228.3,0.00170527]
[1642469555983,0.49205074,3228.8,3228.3,0.00170527]
[1642469556436,2.38646769,3228.7,3228.3,0.00170527]
[1642469557734,0.1237,3228.6,3228.3,0.00170527]
[1642469558233,2.21206769,3228.7,3228.3,0.00170527]
[1642469558835,2.6516057,3228.6,3228.3,0.00170527]
[1642469559436,0.41006074,3228.8,3228.3,0.00170527]
[1642469559437,2.6516057,3228.7,3228.3,0.00170527]
[1642469562883,1.59095,3228.5,3228.3,0.00170527]
[1642469563281,1.29295,3228.5,3228.3,0.00170527]
[1642469563927,2.6516057,3228.4,3228.3,0.00170527]
[1642469564731,2.6516057,3228.7,3228.3,0.00170527]
[1642469565835,2.6516057,3228.7,3228.3,0.30170527]
[1642469566234,2.6516057,3228.7,3228.4,0.00113685]
[1642469566638,2.6516057,3228.7,3228.3,0.00170527]
[1642469566836,5.03805243,3228.7,3228.3,0.00170527]
[1642469568376,4.74325243,3228.7,3228.3,0.00170527]
[1642469569376,2.38644673,3228.7,3228.3,2.00170527]
[1642469569778,2.38644673,3228.7,3228.4,0.00113685]
[1642469570077,2.38644673,3228.7,3228.3,0.00170527]
[1642469571330,4.00879747,3228.8,3228.3,0.00170527]
[1642469571531,2.38644673,3228.7,3228.3,0.00170527]
[1642469572633,1.59095466,3228.5,3228.3,0.00170527]
[1642469572835,1.59095466,3228.5,3228.0,0.00341054]
[1642469573433,1.29665466,3228.5,3228.0,0.00341054]
[1642469573636,1.29665466,3228.5,3228.0,1.14773421]
[1642469573834,2.38644673,3228.7,3228.0,1.14773421]
[1642469574036,2.38644673,3228.7,3228.1,0.00284212]
[1642469574338,2.38644673,3228.5,3228.1,0.00284212]
[1642469574536,2.83344673,3228.5,3228.1,0.00284212]
[1642469574737,2.83344673,3228.5,3227.6,0.00568424]
[1642469575378,2.83344673,3228.5,3227.6,1.29447602]
[1642469575780,2.83344673,3228.5,3227.7,0.00511581]
[1642469576788,2.38644673,3228.3,3227.7,0.00511581]
[1642469576989,2.83344673,3228.3,3227.7,0.00511581]
[1642469578640,2.54094673,3228.3,3227.7,0.00511581]
[1642469579829,0.447,3228.3,3227.7,0.00511581]